fUSD/lending_fUSD_20240718
["ID","MTS","AMOUNT","RATE_DAILY","PERIOD"]
[332595619,1721326247374,-500.0,0.00032876,14]
[332595620,1721326247384,-2230.31,0.00032876,14]
[332595621,1721326247394,-1057.58,0.00032876,14]
[332595622,1721326247403,-500.0,0.00032876,14]
[332595623,1721326247490,-855.44,0.00032876,14]
[332595624,1721326247501,-500.0,0.00032876,14]
[332595625,1721326247511,-500.0,0.00032876,14]
[332595626,1721326247522,-1324.93,0.00032876,14]
[332595627,1721326247532,-500.0,0.00032876,14]
[332595628,1721326247542,-500.0,0.00032876,14]
[332595629,1721326247551,-847.59,0.00032876,14]
[332595630,1721326247560,-947.64,0.00032876,14]
[332595631,1721326247569,-3031.94,0.00032876,14]
[332595632,1721326247579,-1012.91,0.00032876,14]
[332595633,1721326247589,-988.69,0.00032876,14]
[332595634,1721326247599,-563.75,0.00032876,14]
[332595635,1721326247609,-2197.35,0.00032876,14]
[332595636,1721326247620,-500.0,0.00032876,14]
[332595637,1721326247630,-738.17,0.00032876,14]
[332595638,1721326247639,-500.0,0.00032876,14]
[332595639,1721326247649,-500.0,0.00032876,14]
[332595640,1721326247658,-500.0,0.00032876,14]
[332595641,1721326247668,-500.0,0.00032876,14]
[332595642,1721326247678,-1241.73,0.00032876,14]
[332595643,1721326247688,-500.0,0.00032876,14]
[332595644,1721326247699,-500.0,0.00032876,14]
[332595645,1721326247709,-184.86787745,0.00032876,14]
[332595646,1721326247718,-559.75,0.00032876,2]
[332595647,1721326247727,-500.0,0.00032876,14]
[332595648,1721326247736,-500.0,0.00032876,14]
[332595649,1721326247746,-557.26,0.00032876,14]
[332595650,1721326247756,-500.0,0.00032876,14]
[332595651,1721326247766,-1002.42,0.00032876,14]
[332595652,1721326247775,-500.0,0.00032876,14]
[332595653,1721326247784,-548.79,0.00032876,14]
[332595654,1721326247793,-604.43,0.00032876,14]
[332595655,1721326247803,-2494.87,0.00032876,14]
[332595656,1721326247812,-500.0,0.00032876,14]
[332595657,1721326247821,-500.0,0.00032876,14]
[332595658,1721326247831,-500.0,0.00032876,14]
[332595659,1721326247841,-151.26734543,0.00032876,14]
[332595660,1721326247850,-500.0,0.00032876,14]
[332595661,1721326247859,-500.0,0.00032876,14]
[332595662,1721326247869,-500.0,0.00032876,14]
[332595663,1721326247878,-239.90098659,0.00032876,14]
[332595664,1721326247888,-500.0,0.00032876,14]
[332595665,1721326247898,-500.0,0.00032876,14]
[332595666,1721326247908,-500.0,0.00032876,14]
[332595667,1721326247918,-820.75,0.00032876,14]
[332595668,1721326247927,-2357.45,0.00032876,14]
[332595669,1721326247938,-546.1,0.00032876,14]
[332595670,1721326247950,-910.06,0.00032876,14]
[332595671,1721326247960,-500.0,0.00032876,14]
[332595672,1721326247970,-2846.71,0.00032876,14]
[332595673,1721326247980,-791.5,0.00032876,14]
[332595674,1721326247989,-500.0,0.00032876,14]
[332595675,1721326247999,-1668.57,0.00032876,14]
[332595676,1721326248009,-1322.98,0.00032876,14]
[332595677,1721326248019,-500.0,0.00032876,7]
[332595678,1721326248028,-1145.54,0.00032876,14]
[332595679,1721326248038,-500.0,0.00032876,14]
[332595680,1721326248048,-2766.7,0.00032876,14]
[332595681,1721326248058,-1441.73,0.00032876,14]
[332595682,1721326248067,-3910.39,0.00032876,14]
[332595683,1721326248077,-2576.63,0.00032876,14]
[332595684,1721326248087,-500.0,0.00032876,14]
[332595685,1721326248096,-1866.3,0.00032876,14]
[332595686,1721326248106,-734.88,0.00032876,14]
[332595687,1721326248115,-500.0,0.00032876,14]
[332595688,1721326248125,-620.22,0.00032876,14]
[332595689,1721326248137,-500.0,0.00032876,14]
[332595690,1721326248147,-500.0,0.00032876,14]
[332595691,1721326248158,-500.0,0.00032876,14]
[332595692,1721326248169,-2571.85,0.00032876,14]
[332595693,1721326248179,-500.0,0.00032876,14]
[332595694,1721326248189,-500.0,0.00032876,14]
[332595695,1721326248202,-1047.24,0.00032876,14]
[332595696,1721326248211,-781.13,0.00032876,14]
[332595697,1721326248223,-2378.06,0.00032876,14]
[332595698,1721326248234,-800.78,0.00032876,14]
[332595699,1721326248244,-500.0,0.00032876,14]
[332595700,1721326248254,-1366.96,0.00032876,14]
[332595701,1721326248264,-1889.7,0.00032876,14]
[332595702,1721326248274,-500.0,0.00032876,14]
[332595703,1721326248284,-500.0,0.00032876,14]
[332595704,1721326248294,-755.9,0.00032876,14]
[332595705,1721326248303,-761.48,0.00032876,14]
[332595706,1721326248313,-500.0,0.00032876,14]
[332595707,1721326248322,-2467.52,0.00032876,14]
[332595708,1721326248332,-500.0,0.00032876,14]
[332595709,1721326248342,-500.0,0.00032876,14]
[332595710,1721326248352,-627.12,0.00032876,14]
[332595711,1721326248361,-500.0,0.00032876,14]
[332595712,1721326248371,-841.3,0.00032876,14]
[332595713,1721326248381,-500.0,0.00032876,14]
[332595714,1721326248390,-500.0,0.00032876,14]
[332595715,1721326248400,-151.0,0.00032876,7]
[332595716,1721326248410,-151.0,0.00032876,7]
[332595717,1721326248419,-500.0,0.00032876,14]
[332595718,1721326248430,-151.0,0.00032876,7]
[332595719,1721326248441,-500.0,0.00032876,14]
[332595720,1721326248452,-151.0,0.00032876,7]
[332595721,1721326248462,-151.0,0.00032876,7]
[332595722,1721326248473,-500.0,0.00032876,14]
[332595723,1721326248484,-500.0,0.00032876,14]
[332595724,1721326248494,-798.44363888,0.00032876,14]
[332595725,1721326249198,-807.73443717,0.00032876,14]
[332595726,1721326249212,-995.81192395,0.00032876,14]
[332595727,1721326249223,-151.0,0.00032876,7]
[332595728,1721326249235,-151.0,0.00032876,7]
[332595729,1721326249246,-151.0,0.00032876,7]
[332595730,1721326249257,-551.18807605,0.00032876,14]
[332595731,1721326249303,-437.22192395,0.00032876,14]
[332595732,1721326249314,-151.0,0.00032876,7]
[332595733,1721326249325,-142.57956545,0.00032876,14]
[332595734,1721326249337,-357.42043455,0.00032876,14]
[332595735,1721326249347,-151.0,0.00032876,7]
[332595736,1721326249356,-500.0,0.00032876,14]
[332595737,1721326249367,-500.0,0.00032876,14]
[332595738,1721326249377,-1709.46,0.00032876,14]
[332595739,1721326249387,-500.0,0.00032876,14]
[332595740,1721326249396,-1193.44,0.00032876,14]
[332595741,1721326249406,-1537.16,0.00032876,14]
[332595742,1721326249416,-500.0,0.00032876,14]
[332595743,1721326249427,-500.0,0.00032876,14]
[332595744,1721326249437,-500.0,0.00032876,14]
[332595745,1721326249448,-500.0,0.00032876,14]
[332595746,1721326249459,-1012.91,0.00032876,14]
[332595747,1721326249470,-500.0,0.00032876,14]
[332595748,1721326249480,-500.0,0.00032876,14]
[332595749,1721326249490,-2877.33,0.00032876,14]
[332595750,1721326249500,-500.0,0.00032876,14]
[332595751,1721326249510,-592.9,0.00032876,14]
[332595752,1721326249520,-500.0,0.00032876,14]
[332595753,1721326249530,-813.55,0.00032876,14]
[332595754,1721326249540,-500.0,0.00032876,14]
[332595755,1721326249550,-575.17,0.00032876,14]
[332595756,1721326249560,-500.0,0.00032876,14]
[332595757,1721326249571,-500.0,0.00032876,14]
[332595758,1721326249580,-2206.55,0.00032876,14]
[332595759,1721326249590,-500.0,0.00032876,14]
[332595760,1721326249600,-509.33,0.00032876,14]
[332595761,1721326249610,-500.0,0.00032876,14]
[332595762,1721326249621,-608.46,0.00032876,14]
[332595763,1721326249631,-678.8,0.00032876,14]
[332595764,1721326249641,-500.0,0.00032876,14]
[332595765,1721326249651,-200.0,0.00032876,7]
[332595766,1721326249661,-500.0,0.00032876,14]
[332595767,1721326249670,-3845.95,0.00032876,14]
[332595768,1721326249680,-500.0,0.00032876,14]
[332595769,1721326249690,-500.0,0.00032876,14]
[332595770,1721326249699,-500.0,0.00032876,14]
[332595771,1721326249709,-500.0,0.00032876,14]
[332595772,1721326249719,-500.0,0.00032876,14]
[332595773,1721326249729,-500.0,0.00032876,14]
[332595774,1721326249739,-1935.48,0.00032876,14]
[332595775,1721326249749,-2106.76,0.00032876,14]
[332595776,1721326249759,-1606.24,0.00032876,14]
[332595777,1721326249769,-500.0,0.00032876,14]
[332595778,1721326249779,-500.0,0.00032876,14]
[332595779,1721326249789,-500.0,0.00032876,14]
[332595780,1721326249799,-1507.56,0.00032876,14]
[332595781,1721326249809,-500.0,0.00032876,14]
[332595782,1721326249819,-500.0,0.00032876,14]
[332595783,1721326249828,-500.0,0.00032876,14]
[332595784,1721326249838,-500.0,0.00032876,14]
[332595785,1721326249849,-151.0,0.00032876,7]
[332595786,1721326249858,-500.0,0.00032876,14]
[332595787,1721326249868,-151.0,0.00032876,7]
[332595788,1721326249878,-151.0,0.00032876,7]
[332595789,1721326249888,-151.0,0.00032876,7]
[332595790,1721326249898,-151.793989,0.00032876,7]
[332595791,1721326249908,-151.0,0.00032876,7]
[332595792,1721326249918,-151.793989,0.00032876,7]
[332595793,1721326249928,-151.793989,0.00032876,7]
[332595794,1721326249938,-2122.73,0.00032876,14]
[332595795,1721326249948,-151.793989,0.00032876,7]
[332595796,1721326249958,-151.793989,0.00032876,7]
[332595797,1721326249969,-500.0,0.00032876,14]
[332595798,1721326249979,-546.05,0.00032876,14]
[332595799,1721326249990,-348.67728289,0.00032876,14]
[332595800,1721326250000,-300.28461829,0.00032876,14]
[332595801,1721326250017,-708.17538171,0.00032876,14]
[332595802,1721326250026,-500.0,0.00032876,14]
[332595803,1721326250037,-500.0,0.00032876,14]
[332595804,1721326250048,-168.577519,0.00032876,7]
[332595805,1721326250058,-151.793989,0.00032876,7]
[332595806,1721326250067,-151.793989,0.00032876,7]
[332595807,1721326250078,-151.793989,0.00032876,7]
[332595808,1721326250088,-500.0,0.00032876,14]
[332595809,1721326250098,-151.793989,0.00032876,7]
[332595810,1721326250108,-151.793989,0.00032876,7]
[332595811,1721326250118,-500.0,0.00032876,14]
[332595812,1721326250128,-1031.58,0.00032876,14]
[332595813,1721326250139,-207.26998192,0.00032876,14]
[332595814,1721326250149,-500.0,0.00032876,14]
[332595815,1721326250160,-500.0,0.00032876,14]
[332595816,1721326250171,-805.58,0.00032876,14]
[332595817,1721326250181,-500.0,0.00032876,14]
[332595818,1721326250191,-500.0,0.00032876,14]
[332595819,1721326250202,-1999.11,0.00032876,14]
[332595820,1721326250212,-500.0,0.00032876,14]
[332595821,1721326250222,-500.0,0.00032876,14]
[332595822,1721326250232,-500.0,0.00032876,14]
[332595823,1721326250243,-500.0,0.00032876,14]
[332595824,1721326250254,-500.0,0.00032876,14]
[332595825,1721326250264,-500.0,0.00032876,14]
[332595826,1721326250273,-3436.7,0.00032876,14]
[332595827,1721326250283,-630.72,0.00032876,14]
[332595828,1721326250293,-500.0,0.00032876,14]
[332595829,1721326250302,-500.0,0.00032876,14]
[332595830,1721326250312,-500.0,0.00032876,14]
[332595831,1721326250322,-1368.31,0.00032876,14]
[332595832,1721326250331,-198.65382652,0.00032876,14]
[332595833,1721326250341,-771.43,0.00032876,14]
[332595834,1721326250351,-500.0,0.00032876,14]
[332595835,1721326250361,-500.0,0.00032876,14]
[332595836,1721326250371,-500.0,0.00032876,14]
[332595837,1721326250382,-300.77,0.00032876,14]
[332595838,1721326250393,-500.0,0.00032876,14]
[332595839,1721326250403,-500.0,0.00032876,14]
[332595840,1721326250413,-500.0,0.00032876,14]
[332595841,1721326250422,-1191.4,0.00032876,14]
[332595842,1721326250432,-500.0,0.00032876,14]
[332595843,1721326250442,-3448.29,0.00032876,14]
[332595844,1721326250452,-500.0,0.00032876,14]
[332595845,1721326250462,-500.0,0.00032876,14]
[332595846,1721326250472,-500.0,0.00032876,14]
[332595847,1721326250482,-1597.36,0.00032876,14]
[332595848,1721326250492,-2212.0,0.00032876,14]
[332595849,1721326250502,-932.84,0.00032876,14]
[332595850,1721326250512,-1151.24,0.00032876,14]
[332595851,1721326250522,-500.0,0.00032876,14]
[332595852,1721326250532,-2792.63,0.00032876,14]
[332595853,1721326250542,-674.59,0.00032876,14]
[332595854,1721326250552,-500.0,0.00032876,14]
[332595855,1721326250562,-500.0,0.00032876,14]
[332595856,1721326250571,-1051.12,0.00032876,14]
[332595857,1721326250581,-558.27,0.00032876,14]
[332595858,1721326250590,-500.0,0.00032876,14]
[332595859,1721326250600,-500.0,0.00032876,14]
[332595860,1721326250610,-1191.03,0.00032876,14]
[332595861,1721326250619,-500.0,0.00032876,14]
[332595862,1721326250629,-500.0,0.00032876,14]
[332595863,1721326250639,-2193.65,0.00032876,14]
[332595864,1721326250648,-395.220519,0.00032876,7]
[332595865,1721326250658,-395.220519,0.00032876,7]
[332595866,1721326250667,-589.56,0.00032876,14]
[332595867,1721326250677,-395.220519,0.00032876,7]
[332595868,1721326250688,-395.220519,0.00032876,7]
[332595869,1721326250698,-395.220519,0.00032876,7]
[332595870,1721326250708,-500.0,0.00032876,14]
[332595871,1721326250717,-500.0,0.00032876,14]
[332595872,1721326250727,-395.220519,0.00032876,7]
[332595873,1721326250736,-500.0,0.00032876,14]
[332595874,1721326250746,-395.220519,0.00032876,7]
[332595875,1721326250756,-395.220519,0.00032876,7]
[332595876,1721326250766,-395.220519,0.00032876,7]
[332595877,1721326250775,-395.220519,0.00032876,7]
[332595878,1721326250785,-541.66,0.00032876,14]
[332595879,1721326250795,-580.32124473,0.00032876,14]
[332595880,1721326250804,-1421.76,0.00032876,14]
[332595881,1721326250814,-516.173327,0.00032876,7]
[332595882,1721326250824,-500.0,0.00032876,14]
[332595883,1721326250834,-516.173327,0.00032876,7]
[332595884,1721326250843,-500.0,0.00032876,14]
[332595885,1721326250854,-1264.91,0.00032876,14]
[332595886,1721326250864,-516.173327,0.00032876,7]
[332595887,1721326250874,-516.173327,0.00032876,7]
[332595888,1721326250884,-516.173327,0.00032876,7]
[332595889,1721326250896,-500.0,0.00032876,14]
[332595890,1721326250908,-3690.15,0.00032876,14]
[332595891,1721326250918,-500.0,0.00032876,14]
[332595892,1721326250928,-516.173327,0.00032876,7]
[332595893,1721326250938,-500.0,0.00032876,14]
[332595894,1721326250951,-516.173327,0.00032876,7]
[332595895,1721326250961,-500.0,0.00032876,14]
[332595896,1721326250971,-516.173327,0.00032876,7]
[332595897,1721326250982,-756.07,0.00032876,14]
[332595898,1721326250992,-504.44,0.00032876,14]
[332595899,1721326251002,-516.173327,0.00032876,7]
[332595900,1721326251012,-516.534959,0.00032876,7]
[332595901,1721326251023,-516.173327,0.00032876,7]
[332595902,1721326251033,-516.534959,0.00032876,7]
[332595903,1721326251044,-516.534959,0.00032876,7]
[332595904,1721326251056,-930.87,0.00032876,14]
[332595905,1721326251066,-151.0,0.00032876,7]
[332595906,1721326251076,-151.0,0.00032876,7]
[332595907,1721326251086,-151.0,0.00032876,7]
[332595908,1721326251096,-151.0,0.00032876,7]
[332595909,1721326251105,-235.629792,0.00032876,7]
[332595910,1721326251115,-151.0,0.00032876,7]
[332595911,1721326251124,-516.534959,0.00032876,7]
[332595912,1721326251137,-619.08,0.00032876,14]
[332595913,1721326251147,-235.629792,0.00032876,7]
[332595914,1721326251159,-516.534959,0.00032876,7]
[332595915,1721326251172,-933.6,0.00032876,14]
[332595916,1721326251183,-516.534959,0.00032876,7]
[332595917,1721326251195,-235.629792,0.00032876,7]
[332595918,1721326251204,-595.86,0.00032876,14]
[332595919,1721326251214,-235.629792,0.00032876,7]
[332595920,1721326251225,-516.534959,0.00032876,7]
[332595921,1721326251239,-235.629792,0.00032876,7]
[332595922,1721326251252,-516.534959,0.00032876,7]
[332595923,1721326251261,-964.56,0.00032876,14]
[332595924,1721326251272,-500.0,0.00032876,14]
[332595925,1721326251281,-618.28539801,0.00032876,14]
[332595926,1721326251291,-235.629792,0.00032876,7]
[332595927,1721326251301,-235.629792,0.00032876,7]
[332595928,1721326251311,-235.629792,0.00032876,7]
[332595929,1721326251321,-235.629792,0.00032876,7]
[332595930,1721326251331,-235.629792,0.00032876,7]
[332595931,1721326251340,-500.0,0.00032876,14]
[332595932,1721326251351,-500.0,0.00032876,14]
[332595933,1721326251360,-500.0,0.00032876,14]
[332595934,1721326251370,-500.0,0.00032876,14]
[332595935,1721326251381,-1355.83,0.00032876,14]
[332595936,1721326251391,-500.0,0.00032876,14]
[332595937,1721326251401,-754.45,0.00032876,120]
[332595938,1721326251411,-151.0,0.00032876,7]
[332595939,1721326251421,-2193.63,0.00032876,14]
[332595940,1721326251431,-151.0,0.00032876,7]
[332595941,1721326251442,-151.0,0.00032876,7]
[332595942,1721326251452,-151.0,0.00032876,7]
[332595943,1721326251462,-500.0,0.00032876,14]
[332595944,1721326251471,-151.0,0.00032876,7]
[332595945,1721326251484,-500.0,0.00032876,14]
[332595946,1721326251494,-186.89076019,0.00032876,14]
[332595947,1721326251504,-500.0,0.00032876,14]
[332595948,1721326251516,-500.0,0.00032876,14]
[332595949,1721326251526,-706.57,0.00032876,14]
[332595950,1721326251536,-500.0,0.00032876,14]
[332595951,1721326251548,-1007.13,0.00032876,14]
[332595952,1721326251559,-2796.05,0.00032876,14]
[332595953,1721326251570,-2291.66,0.00032876,14]
[332595954,1721326251581,-500.0,0.00032876,14]
[332595955,1721326251864,-151.0,0.00032876,7]
[332595956,1721326251874,-151.0,0.00032876,7]
[332595957,1721326251884,-151.0,0.00032876,7]
[332595958,1721326251893,-500.0,0.00032876,14]
[332595959,1721326251903,-500.0,0.00032876,14]
[332595960,1721326251913,-151.0,0.00032876,7]
[332595961,1721326251923,-500.0,0.00032876,14]
[332595962,1721326251934,-151.0,0.00032876,7]
[332595963,1721326251946,-500.0,0.00032876,14]
[332595964,1721326251956,-583.4,0.00032876,14]
[332595965,1721326251965,-500.0,0.00032876,14]
[332595966,1721326251974,-1771.93,0.00032876,14]
[332595967,1721326251983,-3201.09,0.00032876,14]
[332595968,1721326251993,-1261.94,0.00032876,14]
[332595969,1721326252002,-2786.4,0.00032876,14]
[332595970,1721326252011,-500.0,0.00032876,14]
[332595971,1721326252020,-775.73,0.00032876,14]
[332595972,1721326252030,-500.0,0.00032876,14]
[332595973,1721326252039,-500.0,0.00032876,14]
[332595974,1721326252049,-500.0,0.00032876,14]
[332595975,1721326252058,-1271.67,0.00032876,14]
[332595976,1721326252067,-1727.43,0.00032876,14]
[332595977,1721326252077,-3058.9,0.00032876,14]
[332595978,1721326252086,-500.0,0.00032876,14]
[332595979,1721326252096,-655.44,0.00032876,14]
[332595980,1721326252106,-525.49,0.00032876,14]
[332595981,1721326252115,-500.0,0.00032876,14]
[332595982,1721326252125,-1250.67,0.00032876,14]
[332595983,1721326252135,-502.61589096,0.00032876,14]
[332595984,1721326252145,-151.0,0.00032876,7]
[332595985,1721326252155,-500.0,0.00032876,14]
[332595986,1721326252169,-500.0,0.00032876,14]
[332595987,1721326252178,-4038.38,0.00032876,14]
[332595988,1721326252187,-572.05893815,0.00032876,2]
[332595989,1721326252202,-500.0,0.00032876,14]
[332595990,1721326252212,-500.0,0.00032876,14]
[332595991,1721326252221,-582.062354,0.00032876,7]
[332595992,1721326252230,-500.0,0.00032876,14]
[332595993,1721326252241,-582.062354,0.00032876,7]
[332595994,1721326252250,-582.062354,0.00032876,7]
[332595995,1721326252260,-582.062354,0.00032876,7]
[332595996,1721326252269,-1472.69,0.00032876,14]
[332595997,1721326252279,-582.062354,0.00032876,7]
[332595998,1721326252288,-2704.9,0.00032876,14]
[332595999,1721326252298,-1600.85,0.00032876,14]
[332596000,1721326252307,-521.04,0.00032876,14]
[332596001,1721326252317,-513.3,0.00032876,14]
[332596002,1721326252326,-582.062354,0.00032876,7]
[332596003,1721326252335,-1569.22,0.00032876,14]
[332596004,1721326252344,-582.062354,0.00032876,7]
[332596005,1721326252354,-582.062354,0.00032876,7]
[332596006,1721326252363,-503.80185416,0.00032876,14]
[332596007,1721326252373,-582.062354,0.00032876,7]
[332596008,1721326252382,-582.062354,0.00032876,7]
[332596009,1721326252391,-1230.25,0.00032876,14]
[332596010,1721326252400,-151.0,0.00032876,7]
[332596011,1721326252410,-500.0,0.00032876,14]
[332596012,1721326252420,-151.0,0.00032876,7]
[332596013,1721326252429,-151.0,0.00032876,7]
[332596014,1721326252438,-151.0,0.00032876,7]
[332596015,1721326252450,-151.0,0.00032876,7]
[332596016,1721326252459,-1436.35,0.00032876,14]
[332596017,1721326252469,-151.0,0.00032876,7]
[332596018,1721326252479,-198.041112,0.00032876,7]
[332596019,1721326252489,-500.0,0.00032876,14]
[332596020,1721326252498,-1140.14,0.00032876,14]
[332596021,1721326252507,-500.0,0.00032876,14]
[332596022,1721326252516,-500.0,0.00032876,14]
[332596023,1721326252526,-711.87,0.00032876,14]
[332596024,1721326252535,-2628.24,0.00032876,14]
[332596025,1721326252544,-1233.59,0.00032876,14]
[332596026,1721326252553,-1575.01,0.00032876,14]
[332596027,1721326252563,-2142.01,0.00032876,14]
[332596028,1721326252573,-640.66,0.00032876,14]
[332596029,1721326252582,-2372.75,0.00032876,14]
[332596030,1721326252591,-151.0,0.00032876,7]
[332596031,1721326252600,-500.0,0.00032876,14]
[332596032,1721326252610,-500.0,0.00032876,14]
[332596033,1721326252619,-1237.01,0.00032876,14]
[332596034,1721326252628,-151.853254,0.00032876,7]
[332596035,1721326252637,-2452.52,0.00032876,14]
[332596036,1721326252647,-500.0,0.00032876,14]
[332596037,1721326252656,-500.0,0.00032876,14]
[332596038,1721326252665,-1215.7,0.00032876,14]
[332596039,1721326252674,-500.0,0.00032876,14]
[332596040,1721326252683,-788.24,0.00032876,14]
[332596041,1721326252692,-500.0,0.00032876,14]
[332596042,1721326252703,-500.0,0.00032876,14]
[332596043,1721326252712,-2707.31,0.00032876,14]
[332596044,1721326252722,-500.0,0.00032876,14]
[332596045,1721326252732,-500.0,0.00032876,14]
[332596046,1721326252741,-151.0,0.00032876,7]
[332596047,1721326252751,-151.0,0.00032876,7]
[332596048,1721326252760,-151.0,0.00032876,7]
[332596049,1721326252769,-151.0,0.00032876,7]
[332596050,1721326252778,-151.0,0.00032876,7]
[332596051,1721326252788,-3665.06,0.00032876,14]
[332596052,1721326252797,-500.0,0.00032876,14]
[332596053,1721326252806,-998.3,0.00032876,14]
[332596054,1721326252815,-375.7139348,0.00032876,14]
[332596055,1721326252824,-1424.18,0.00032876,14]
[332596056,1721326252833,-500.0,0.00032876,14]
[332596057,1721326252843,-500.0,0.00032876,14]
[332596058,1721326252852,-500.0,0.00032876,14]
[332596059,1721326252861,-500.0,0.00032876,14]
[332596060,1721326252871,-500.0,0.00032876,14]
[332596061,1721326252880,-1292.72,0.00032876,14]
[332596062,1721326252889,-6491.62,0.00032876,14]
[332596063,1721326252899,-2315.58,0.00032876,14]
[332596064,1721326252908,-500.0,0.00032876,14]
[332596065,1721326252918,-500.0,0.00032876,14]
[332596066,1721326252927,-151.0,0.00032876,7]
[332596067,1721326252937,-151.732552,0.00032876,7]
[332596068,1721326252946,-1035.78,0.00032876,14]
[332596069,1721326252956,-500.0,0.00032876,14]
[332596070,1721326252965,-2060.09,0.00032876,14]
[332596071,1721326252975,-8002.34,0.00032876,14]
[332596072,1721326252984,-500.0,0.00032876,14]
[332596073,1721326252994,-1626.88,0.00032876,14]
[332596074,1721326253003,-500.0,0.00032876,14]
[332596075,1721326253013,-982.66559,0.00032876,2]
[332596076,1721326253023,-500.0,0.00032876,14]
[332596077,1721326253033,-500.0,0.00032876,14]
[332596078,1721326253042,-988.19,0.00032876,14]
[332596079,1721326253052,-500.0,0.00032876,14]
[332596080,1721326253061,-500.0,0.00032876,14]
[332596081,1721326253071,-988.19,0.00032876,14]
[332596082,1721326253081,-988.19,0.00032876,14]
[332596083,1721326253091,-500.0,0.00032876,14]
[332596084,1721326253101,-988.19,0.00032876,14]
[332596085,1721326253110,-988.19,0.00032876,14]
[332596086,1721326253120,-500.0,0.00032876,14]
[332596087,1721326253130,-988.19,0.00032876,14]
[332596088,1721326253142,-988.19,0.00032876,14]
[332596089,1721326253152,-2499.8,0.00032876,14]
[332596090,1721326253165,-500.0,0.00032876,14]
[332596091,1721326253175,-988.19,0.00032876,14]
[332596092,1721326253185,-2189.33,0.00032876,14]
[332596093,1721326253195,-1878.62,0.00032876,14]
[332596094,1721326253205,-495.08629023,0.00032876,14]
[332596095,1721326253215,-500.0,0.00032876,14]
[332596096,1721326253225,-500.0,0.00032876,14]
[332596097,1721326253235,-1663.17,0.00032876,14]
[332596098,1721326253246,-500.0,0.00032876,14]
[332596099,1721326253255,-1020.61,0.00032876,14]
[332596100,1721326253265,-500.0,0.00032876,14]
[332596101,1721326253275,-1011.29,0.00032876,14]
[332596102,1721326253284,-4031.57,0.00032876,14]
[332596103,1721326253294,-500.0,0.00032876,7]
[332596104,1721326253304,-988.19,0.00032876,14]
[332596105,1721326253313,-500.0,0.00032876,14]
[332596106,1721326253323,-500.0,0.00032876,14]
[332596107,1721326253332,-526.66,0.00032876,14]
[332596108,1721326253342,-500.0,0.00032876,14]
[332596109,1721326253351,-1992.91,0.00032876,14]
[332596110,1721326253361,-902.14,0.00032876,14]
[332596111,1721326253370,-1873.35,0.00032876,14]
[332596112,1721326253380,-500.0,0.00032876,14]
[332596113,1721326253389,-500.0,0.00032876,14]
[332596114,1721326253399,-11614.81,0.00032876,14]
[332596115,1721326253408,-1210.46,0.00032876,14]
[332596116,1721326253418,-2490.72,0.00032876,14]
[332596117,1721326253427,-5200.48,0.00032876,14]
[332596118,1721326253437,-1318.34,0.00032876,14]